bitfinex/quotes_SOLUSD_20251118
["timestamp","ask_amount","ask_price","bid_price","bid_amount"]
[1763493034623,0.69,141.56,141.52,9.68061837]
[1763493034829,18.81096,141.56,141.52,9.68061837]
[1763493035306,0.69,141.55,141.52,9.68061837]
[1763493035508,0.69,141.55,141.51,13.88061837]
[1763493036428,0.69,141.55,141.52,9.68061837]
[1763493038340,0.69,141.58,141.53,0.7]
[1763493038545,0.69,141.57,141.54,9.68061837]
[1763493038916,0.69,141.57,141.53,3.46942126]
[1763493040308,3.46942126,141.54,141.47,3.46942126]
[1763493040507,3.46942126,141.52,141.47,3.46942126]
[1763493040708,3.46942126,141.52,141.45,0.7]
[1763493040938,4.15942126,141.51,141.46,7.66942126]
[1763493041135,3.46942126,141.5,141.46,4.2]
[1763493041347,3.46942126,141.49,141.45,18.12096]
[1763493041522,0.69,141.48,141.44,3.46942126]
[1763493041839,4.15942126,141.48,141.42,22.32096]
[1763493042031,3.46942126,141.46,141.42,4.2]
[1763493042427,0.72,141.45,141.42,7.66942126]
[1763493042940,0.72,141.45,141.41,3.46942126]
[1763493043315,0.72,141.45,141.41,4.15942126]
[1763493044844,0.72,141.45,141.41,10.37236849]
[1763493045041,4.75448062,141.49,141.42,9.68236849]
[1763493045249,0.72,141.47,141.43,9.68236849]
[1763493045821,0.72,141.47,141.44,9.68236849]
[1763493046432,0.72,141.47,141.43,10.37236849]
[1763493047328,0.72,141.49,141.45,9.68236849]
[1763493047519,0.72,141.49,141.46,9.68236849]
[1763493048121,9.68236849,141.51,141.46,9.68236849]
[1763493048122,0.72,141.51,141.46,10.37236849]
[1763493048438,0.72,141.5,141.46,10.37236849]
[1763493048639,0.72,141.5,141.47,9.68236849]
[1763493048842,0.72,141.5,141.46,10.37236849]
[1763493049038,0.72,141.5,141.46,9.68236849]
[1763493049630,10.40236849,141.5,141.45,13.88236849]
[1763493050029,0.72,141.49,141.45,13.88236849]
[1763493050945,0.72,141.49,141.45,14.57236849]
[1763493051260,0.72,141.49,141.46,4.2]
[1763493051746,0.72,141.5,141.46,4.2]
[1763493051940,0.72,141.5,141.46,13.88236849]
[1763493052334,10.40236849,141.5,141.46,4.2]
[1763493052544,10.40236849,141.5,141.45,9.68236849]
[1763493052730,0.72,141.49,141.45,9.68236849]
[1763493052925,0.72,141.49,141.45,13.88236849]
[1763493053423,0.72,141.49,141.45,14.57236849]
[1763493053830,0.72,141.49,141.46,9.68236849]
[1763493055825,14.44090767,141.52,141.46,10.37236849]
[1763493056053,0.72,141.5,141.46,10.37236849]
[1763493056962,5.47853918,141.52,141.47,10.37236849]
[1763493057263,0.72,141.51,141.47,9.68236849]
[1763493057731,0.72,141.51,141.47,10.37236849]
[1763493058236,0.72,141.51,141.48,9.68236849]
[1763493058753,32.72332849,141.53,141.48,10.37236849]
[1763493058958,0.72,141.52,141.48,10.37236849]
[1763493059854,0.72,141.52,141.48,9.68236849]
[1763493061147,0.72,141.52,141.48,13.88236849]
[1763493061556,0.72,141.52,141.48,4.2]
[1763493061751,0.72,141.52,141.48,9.68236849]
[1763493061961,5.47985869,141.52,141.47,9.68236849]
[1763493062159,0.72,141.51,141.47,9.68236849]
[1763493062469,0.72,141.51,141.48,9.68236849]
[1763493065340,0.72,141.51,141.47,9.68236849]
[1763493065737,9.68236849,141.5,141.44,9.68236849]
[1763493065965,9.68236849,141.48,141.42,14.57236849]
[1763493066433,0.72,141.47,141.43,9.68236849]
[1763493066968,0.72,141.47,141.43,3.47484334]
[1763493067669,3.47484334,141.44,141.39,3.57484334]
[1763493067981,3.47484334,141.43,141.39,0.1]
[1763493068449,0.72,141.42,141.39,0.1]
[1763493069052,0.72,141.42,141.39,3.57484334]
[1763493069465,0.72,141.42,141.39,0.1]
[1763493070442,0.72,141.42,141.39,3.57484334]
[1763493070655,0.72,141.42,141.4,3.47484334]
[1763493071154,0.72,141.42,141.39,3.57484334]
[1763493071343,0.72,141.42,141.39,0.1]
[1763493071542,0.72,141.42,141.39,3.57484334]
[1763493071764,0.72,141.42,141.4,3.47484334]
[1763493072145,4.2,141.46,141.4,3.47484334]
[1763493072146,0.72,141.44,141.41,3.47484334]
[1763493072352,4.19484334,141.44,141.39,3.57484334]
[1763493072768,0.69,141.43,141.39,3.57484334]
[1763493073866,0.69,141.43,141.4,3.47484334]
[1763493074367,7.67484334,141.46,141.41,3.47484334]
[1763493074673,0.69,141.45,141.41,3.47484334]
[1763493075662,18.12096,141.44,141.41,3.47484334]
[1763493075868,18.12096,141.44,141.4,3.47484334]
[1763493076146,0.69,141.43,141.4,3.47484334]
[1763493076867,0.69,141.43,141.4,2.22494458]
[1763493077047,0.69,141.43,141.39,0.75]
[1763493077048,0.69,141.43,141.39,2.97494458]
[1763493077765,0.69,141.43,141.39,2.32494458]
[1763493078470,0.69,141.46,141.42,2.22494458]
[1763493078656,0.69,141.45,141.4,0.65]
[1763493078856,0.69,141.45,141.42,2.22494458]
[1763493079561,0.69,141.45,141.43,2.22494458]
[1763493079976,0.69,141.47,141.44,2.87494458]
[1763493080153,0.69,141.47,141.45,2.22494458]
[1763493080871,4.74845936,141.51,141.45,2.22494458]
[1763493081049,0.7,141.5,141.47,2.22494458]
[1763493081453,0.7,141.5,141.44,22.99096]
[1763493081780,0.7,141.5,141.46,2.22494458]
[1763493082143,0.7,141.5,141.47,2.22494458]
[1763493083150,2.92494458,141.5,141.45,2.22494458]
[1763493083574,0.7,141.49,141.45,2.22494458]
[1763493084450,2.22494458,141.47,141.42,2.22494458]
[1763493084666,18.12096,141.48,141.44,2.22494458]
[1763493084855,18.82096,141.48,141.45,2.22494458]
[1763493085278,0.7,141.47,141.45,2.22494458]
[1763493086362,0.7,141.47,141.43,0.67]
[1763493086363,0.7,141.47,141.44,2.22494458]
[1763493088980,0.7,141.47,141.45,2.22494458]
[1763493089772,18.12096,141.48,141.45,2.22494458]
[1763493089974,4.2,141.49,141.47,2.22494458]
[1763493090563,4.9,141.49,141.47,2.22494458]
[1763493090763,18.82096,141.51,141.47,2.89494458]
[1763493091083,0.7,141.51,141.49,2.22494458]
[1763493092057,4.9,141.53,141.49,2.22494458]
[1763493092253,18.12096,141.53,141.5,2.22494458]
[1763493092459,0.7,141.57,141.52,2.22494458]
[1763493092756,2.22494458,141.59,141.51,0.67]
[1763493092757,0.7,141.59,141.55,2.22494458]
[1763493092970,18.82096,141.59,141.55,2.22494458]
[1763493093182,0.7,141.59,141.57,2.22494458]
[1763493093480,0.9,141.61,141.58,2.22494458]
[1763493093862,0.7,141.6,141.58,2.22494458]
[1763493094885,0.7,141.6,141.58,5.77962333]
[1763493095058,0.2,141.61,141.59,6.44962333]
[1763493095256,0.2,141.68,141.61,18.12096]
[1763493095481,0.2,141.68,141.66,5.77962333]
[1763493095978,0.2,141.68,141.63,0.58]
[1763493096280,0.2,141.68,141.66,5.77962333]
[1763493099294,0.2,141.68,141.63,0.58]
[1763493099454,0.2,141.68,141.66,5.77962333]
[1763493100189,0.2,141.68,141.66,6.35962333]
[1763493101670,0.2,141.68,141.66,5.77962333]
[1763493104174,0.9,141.67,141.64,5.77962333]
[1763493104495,0.2,141.67,141.66,5.77962333]
[1763493104690,0.2,141.67,141.66,6.35962333]
[1763493107137,0.2,141.67,141.66,5.77962333]
[1763493108210,0.2,141.67,141.66,6.35962333]
[1763493108425,0.2,141.67,141.66,7.0655389]
[1763493108639,0.2,141.67,141.66,16.85436659]
[1763493110519,0.2,141.69,141.67,28.48978769]
[1763493110735,0.2,141.71,141.7,27.90978769]
[1763493110925,0.2,141.71,141.7,40.04903435]
[1763493112320,0.2,141.73,141.71,9.78882769]
[1763493112524,0.2,141.73,141.72,9.97962333]
[1763493112730,0.2,141.73,141.72,10.55962333]
[1763493114042,0.2,141.73,141.72,20.34845102]
[1763493114215,0.2,141.75,141.74,5.77962333]
[1763493114534,0.2,141.75,141.74,15.56845102]
[1763493114738,4.2,141.86,141.74,16.14845102]
[1763493115032,0.7,141.82,141.75,10.55962333]
[1763493115539,0.7,141.81,141.75,10.55962333]
[1763493115719,0.7,141.8,141.75,20.34845102]
[1763493116627,0.7,141.8,141.75,16.14845102]
[1763493116927,0.7,141.8,141.75,20.34845102]
[1763493117512,0.7,141.8,141.75,16.14845102]
[1763493117708,0.7,141.8,141.75,20.34845102]
[1763493118440,0.7,141.8,141.75,21.05391839]
[1763493119227,0.7,141.8,141.75,20.34845102]
[1763493119665,0.7,141.8,141.75,16.14845102]
[1763493119808,0.7,141.8,141.75,20.34845102]
[1763493120120,0.7,141.81,141.75,20.34845102]
[1763493120735,0.7,141.84,141.76,9.78882769]
[1763493120939,0.7,141.84,141.82,2.48831966]
[1763493121316,0.7,141.84,141.81,6.68831966]
[1763493121519,0.7,141.84,141.81,4.2]
[1763493121812,0.7,141.84,141.82,2.48831966]
[1763493122240,0.7,141.84,141.82,6.68831966]
[1763493122949,6.46171158,141.84,141.79,9.96171158]
[1763493123123,0.7,141.83,141.79,4.2]
[1763493123322,0.7,141.83,141.79,9.96171158]
[1763493125725,18.12096,141.79,141.69,0.58]
[1763493125924,0.7,141.83,141.78,5.76171158]
[1763493126122,0.7,141.85,141.82,5.76171158]
[1763493126325,0.7,141.85,141.83,5.76171158]
[1763493126641,19.02096,141.89,141.82,4.2]
[1763493126863,0.9,141.89,141.87,5.76171158]
[1763493127018,0.9,141.89,141.83,27.90978769]
[1763493127019,0.9,141.89,141.88,5.76171158]
[1763493127418,0.2,141.89,141.88,5.76171158]
[1763493127651,0.9,141.89,141.88,5.76171158]
[1763493128147,0.2,141.89,141.88,5.76171158]
[1763493130147,0.2,141.89,141.86,4.22]
[1763493130333,0.2,141.89,141.88,5.76171158]
[1763493131545,0.2,141.89,141.85,0.70497003]
[1763493131751,0.9,141.89,141.85,9.96171158]
[1763493131935,0.7,141.88,141.85,9.96171158]
[1763493132334,0.7,141.88,141.84,5.76171158]
[1763493132534,23.88267158,141.87,141.8,0.70521861]
[1763493132748,5.76171158,141.86,141.8,9.96171158]
[1763493132927,6.47171158,141.86,141.8,9.96171158]
[1763493133127,0.71,141.85,141.81,5.76171158]
[1763493133822,6.47171158,141.85,141.8,9.96171158]
[1763493134026,23.88267158,141.84,141.79,5.76171158]
[1763493134243,24.59267158,141.84,141.79,5.76171158]
[1763493134446,0.71,141.83,141.79,5.76171158]
[1763493134749,0.71,141.83,141.8,5.76171158]
[1763493135326,0.71,141.85,141.81,5.76171158]
[1763493135954,0.71,141.87,141.84,5.76171158]
[1763493136119,0.2,141.89,141.86,5.76171158]
[1763493136520,0.2,141.89,141.88,5.76171158]
[1763493136947,0.2,141.89,141.88,9.61759752]
[1763493137249,0.2,141.89,141.87,9.61759752]
[1763493138439,0.2,141.89,141.88,9.61759752]
[1763493138641,0.2,141.89,141.87,9.61759752]
[1763493139643,0.91,141.89,141.87,9.61759752]
[1763493140155,0.91,141.89,141.86,19.40642521]
[1763493140538,0.91,141.89,141.86,9.78882769]
[1763493140744,0.2,141.89,141.87,9.61759752]
[1763493140958,0.2,141.89,141.85,4.90497003]
[1763493140959,0.86,141.89,141.85,4.2]
[1763493141157,0.2,141.89,141.88,9.61759752]
[1763493144468,0.2,141.89,141.88,19.98642521]
[1763493151147,0.2,141.89,141.88,24.20642521]
[1763493152875,0.2,141.89,141.88,14.00882769]
[1763493153070,0.2,141.89,141.88,23.62642521]
[1763493153764,0.86,141.89,141.88,4.22]
[1763493153969,0.86,141.89,141.88,4.2]
[1763493154689,0.2,141.89,141.88,4.2]
[1763493154975,0.86,141.89,141.88,4.2]
[1763493155775,0.2,141.89,141.88,4.2]
[1763493157275,0.2,141.89,141.88,13.81759752]
[1763493159472,0.86,141.89,141.88,13.81759752]
[1763493160149,0.86,141.89,141.88,4.2]
[1763493162463,0.2,141.89,141.88,4.2]
[1763493163592,0.9,141.89,141.88,4.2]
[1763493165587,0.2,141.89,141.88,4.2]
[1763493166603,0.9,141.89,141.88,4.2]
[1763493167583,0.2,141.89,141.88,4.2]
[1763493168866,0.2,141.89,141.87,3.88479494]
[1763493168867,0.9,141.89,141.87,3.88479494]
[1763493169064,0.9,141.89,141.88,4.2]
[1763493169483,0.2,141.89,141.88,4.2]
[1763493170371,0.2,141.89,141.88,17.87362263]
[1763493170575,0.2,141.89,141.88,18.45362263]
[1763493171477,0.2,141.89,141.88,17.87362263]
[1763493171886,0.2,141.89,141.88,18.45362263]
[1763493179905,0.2,141.89,141.88,13.98882769]
[1763493180217,0.2,141.89,141.88,17.87362263]
[1763493181685,0.2,141.89,141.88,13.67362263]
[1763493181893,0.9,141.89,141.87,4.2]
[1763493182083,22.00575494,141.88,141.78,0.58]
[1763493182284,3.88479494,141.85,141.79,3.88479494]
[1763493182492,3.88479494,141.84,141.8,4.2]
[1763493183016,0.7,141.83,141.8,4.2]
[1763493183618,4.58479494,141.83,141.8,4.2]
[1763493183903,0.7,141.82,141.8,4.2]
[1763493185093,3.88479494,141.81,141.76,3.88479494]
[1763493185295,0.7,141.82,141.72,9.78882769]
[1763493185296,4.58479494,141.82,141.72,9.78882769]
[1763493185484,4.58479494,141.81,141.76,13.67362263]
[1763493185799,4.58479494,141.81,141.76,17.87362263]
[1763493186100,0.7,141.8,141.76,17.87362263]
[1763493186601,3.88479494,141.84,141.79,3.88479494]
[1763493186806,0.7,141.82,141.79,8.08479494]
[1763493187402,3.88479494,141.81,141.77,4.2]
[1763493187596,3.88479494,141.8,141.77,4.2]
[1763493187989,0.7,141.79,141.75,17.87362263]
[1763493188385,0.7,141.79,141.77,3.88479494]
[1763493188593,0.7,141.79,141.75,13.98882769]
[1763493188799,0.7,141.79,141.77,3.88479494]
[1763493190378,0.7,141.81,141.78,3.88479494]
[1763493190583,0.7,141.81,141.8,3.88479494]
[1763493192204,0.7,141.81,141.78,13.98882769]
[1763493192404,0.7,141.81,141.8,3.88479494]
[1763493192995,0.7,141.81,141.79,3.88479494]
[1763493193989,3.88479494,141.84,141.79,3.88479494]
[1763493193990,0.66,141.84,141.8,3.88479494]
[1763493194199,0.66,141.84,141.81,3.88479494]
[1763493194400,0.66,141.84,141.82,3.88479494]
[1763493194797,0.66,141.84,141.83,3.88479494]
[1763493195202,0.66,141.84,141.82,3.88479494]
[1763493196111,0.66,141.84,141.83,3.88479494]
[1763493198891,0.66,141.84,141.83,2.48786133]
[1763493199100,0.66,141.87,141.83,2.48786133]
[1763493199402,0.66,141.87,141.85,2.48786133]
[1763493200302,0.2,141.89,141.82,0.58]
[1763493200303,0.66,141.88,141.86,2.48786133]
[1763493200502,0.66,141.88,141.85,2.48786133]
[1763493202719,3.14786133,141.88,141.83,2.48786133]
[1763493203019,0.66,141.88,141.84,2.48786133]
[1763493203217,0.66,141.87,141.84,2.48786133]
[1763493203934,0.66,141.87,141.86,2.48786133]
[1763493205129,0.66,141.87,141.85,2.48786133]
[1763493207104,18.98096,141.89,141.86,2.48786133]
[1763493207333,0.66,141.88,141.87,2.48786133]
[1763493208324,0.2,141.89,141.87,2.48786133]
[1763493208531,0.86,141.89,141.88,2.48786133]
[1763493210103,0.86,141.89,141.87,2.48786133]
[1763493210329,0.66,141.88,141.86,2.48786133]
[1763493210839,0.66,141.88,141.83,2.48786133]
[1763493211908,0.66,141.88,141.84,2.48786133]
[1763493213831,3.14786133,141.88,141.83,2.48786133]
[1763493214013,0.66,141.88,141.83,2.48786133]
[1763493214215,0.66,141.87,141.83,2.48786133]
[1763493215110,0.66,141.87,141.84,2.48786133]
[1763493215311,0.66,141.87,141.85,2.48786133]
[1763493215724,0.66,141.87,141.86,2.48786133]
[1763493216120,0.86,141.89,141.86,2.48786133]
[1763493216517,0.66,141.88,141.86,2.48786133]
[1763493218339,0.2,141.89,141.87,2.48786133]
[1763493218523,0.2,141.89,141.88,2.48786133]
[1763493219349,0.86,141.89,141.87,2.48786133]
[1763493219832,0.66,141.88,141.86,2.48786133]
[1763493220034,0.66,141.88,141.87,2.48786133]
[1763493220336,0.2,141.89,141.87,2.48786133]
[1763493220634,0.2,141.89,141.88,2.48786133]
[1763493221530,0.2,141.89,141.88,12.85668902]
[1763493221711,0.2,141.89,141.88,13.56150999]
[1763493223418,0.2,141.89,141.88,12.98150999]
[1763493223814,0.2,141.89,141.88,12.27668902]
[1763493227433,0.2,141.89,141.88,9.78882769]
[1763493227641,0.2,141.89,141.88,12.27668902]
[1763493229130,0.88,141.89,141.87,2.48786133]
[1763493229642,0.68,141.88,141.87,2.48786133]
[1763493231234,0.2,141.89,141.87,2.48786133]
[1763493231436,0.2,141.89,141.88,2.48786133]
[1763493233029,0.88,141.89,141.87,2.48786133]
[1763493233344,0.88,141.89,141.88,2.48786133]
[1763493234418,0.88,141.89,141.87,2.48786133]
[1763493234737,0.68,141.88,141.87,2.48786133]
[1763493235249,0.68,141.88,141.86,4.2]
[1763493235422,0.68,141.88,141.87,2.48786133]
[1763493236331,0.2,141.89,141.87,2.48786133]
[1763493236638,0.2,141.89,141.88,2.48786133]
[1763493236943,0.88,141.89,141.88,2.48786133]
[1763493239156,0.2,141.89,141.86,4.2]
[1763493239325,0.2,141.89,141.88,12.27668902]
[1763493241358,0.2,141.89,141.88,12.85668902]
[1763493241567,0.2,141.89,141.88,12.27668902]
[1763493242031,0.2,141.89,141.88,12.85668902]
[1763493243051,0.2,141.89,141.88,12.27668902]
[1763493244354,0.2,141.89,141.88,2.48786133]
[1763493244558,0.88,141.89,141.88,6.68786133]
[1763493244727,0.88,141.89,141.85,2.82615607]
[1763493244928,0.68,141.88,141.85,9.5140174]
[1763493245135,0.2,141.89,141.86,2.48786133]
[1763493245335,0.2,141.89,141.87,0.70487065]
[1763493245534,0.2,141.89,141.88,4.2]
[1763493245748,0.2,141.89,141.88,6.68786133]
[1763493247858,0.88,141.89,141.88,2.48786133]
[1763493248060,0.88,141.89,141.88,6.68786133]
[1763493249835,0.88,141.89,141.88,2.48786133]
[1763493250238,3.36786133,141.89,141.84,18.12096]
[1763493250462,2.48786133,141.85,141.83,2.82655548]
[1763493250769,20.60882133,141.84,141.78,2.48786133]
[1763493250933,2.48786133,141.83,141.78,2.48786133]
[1763493251146,3.16786133,141.83,141.78,2.48786133]
[1763493251366,0.68,141.82,141.79,2.48786133]
[1763493251758,0.68,141.82,141.8,2.48786133]
[1763493251970,0.68,141.82,141.79,2.48786133]
[1763493252551,0.68,141.82,141.79,0.69]
[1763493252868,0.68,141.82,141.77,4.89]
[1763493253061,0.68,141.82,141.78,0.69]
[1763493253770,0.69,141.84,141.79,9.78882769]
[1763493254077,0.69,141.84,141.82,2.48786133]
[1763493254965,0.69,141.84,141.81,2.48786133]
[1763493255163,3.17786133,141.84,141.8,4.2]
[1763493255477,2.48786133,141.83,141.78,2.48786133]
[1763493255674,21.29882133,141.83,141.78,2.48786133]
[1763493255859,0.69,141.82,141.78,2.48786133]
[1763493256560,2.48786133,141.81,141.77,4.2]
[1763493256763,0.69,141.8,141.77,4.2]
[1763493257298,0.69,141.8,141.77,6.68786133]
[1763493257586,0.69,141.8,141.78,2.48786133]
[1763493257782,0.69,141.8,141.77,4.2]
[1763493257956,0.69,141.8,141.78,2.48786133]
[1763493258376,0.69,141.83,141.79,3.17786133]
[1763493258704,0.2,141.89,141.82,2.48786133]
[1763493258705,2.48786133,141.87,141.82,2.48786133]
[1763493258886,0.69,141.85,141.83,3.88761609]
[1763493260864,0.69,141.85,141.83,9.62683052]
[1763493261467,0.71,141.88,141.84,9.62683052]
[1763493261682,0.71,141.88,141.86,9.62683052]
[1763493261981,0.71,141.88,141.87,9.62683052]
[1763493262355,0.71,141.88,141.84,4.89]
[1763493262555,0.71,141.88,141.87,9.62683052]
[1763493268680,0.71,141.88,141.84,4.89]
[1763493268982,0.71,141.88,141.87,9.62683052]
[1763493269698,0.2,141.89,141.87,9.62683052]
[1763493269994,0.2,141.89,141.88,9.62683052]
[1763493270161,0.2,141.89,141.88,10.31683052]
[1763493270484,0.2,141.89,141.88,9.62683052]
[1763493273186,0.2,141.89,141.87,4.2]
[1763493273491,0.71,141.88,141.87,4.2]
[1763493273693,0.71,141.88,141.87,13.82683052]
[1763493273983,0.2,141.89,141.87,9.62683052]
[1763493274190,0.91,141.89,141.88,9.62683052]
[1763493277308,0.15607394,141.9,141.88,9.62683052]
[1763493277993,0.15607394,141.9,141.87,9.62683052]
[1763493278487,0.15607394,141.9,141.88,9.62683052]
[1763493279389,0.86607394,141.9,141.88,9.62683052]
[1763493280782,0.86607394,141.9,141.88,3.88480767]
[1763493281697,0.86607394,141.9,141.87,3.88480767]
[1763493284674,0.86607394,141.9,141.86,3.88480767]
[1763493287499,26.20576767,141.89,141.83,8.08480767]
[1763493287699,3.88480767,141.88,141.83,8.08480767]
[1763493287905,4.57480767,141.88,141.83,8.08480767]
[1763493288090,0.69,141.87,141.83,8.08480767]
[1763493288402,0.69,141.87,141.83,8.75480767]
[1763493288983,26.89576767,141.89,141.84,4.55480767]
[1763493289286,23.01096,141.89,141.85,3.88480767]
[1763493289606,0.69,141.88,141.85,3.88480767]
[1763493290808,0.69,141.88,141.84,4.55480767]
[1763493291303,4.57480767,141.88,141.83,8.08480767]
[1763493291600,3.88480767,141.86,141.8,3.88480767]
[1763493291800,22.00576767,141.85,141.8,3.88480767]
[1763493292014,22.69576767,141.85,141.8,3.88480767]
[1763493292195,0.69,141.84,141.8,4.55480767]
[1763493292373,0.69,141.84,141.8,3.88480767]
[1763493292580,0.69,141.84,141.81,0.67]
[1763493294186,0.69,141.84,141.81,4.55480767]
[1763493294904,18.12096,141.85,141.81,4.55480767]
[1763493295106,18.81096,141.85,141.81,4.55480767]
[1763493295286,0.69,141.84,141.81,4.55480767]
[1763493297896,4.2,141.86,141.82,4.55480767]
[1763493298212,4.2,141.86,141.83,3.88480767]
[1763493298418,18.12096,141.87,141.84,3.88480767]
[1763493298584,4.2,141.88,141.84,4.55480767]
[1763493298783,0.69,141.87,141.83,3.88480767]
[1763493299003,0.69,141.87,141.83,4.55480767]
[1763493299616,0.69,141.87,141.84,4.55480767]
[1763493299979,0.69,141.87,141.84,3.88480767]
[1763493300523,22.32096,141.88,141.85,0.67]
[1763493300803,0.69,141.87,141.84,4.55480767]
[1763493301205,22.32096,141.88,141.84,4.55480767]
[1763493301614,0.69,141.87,141.84,4.55480767]
[1763493301987,0.69,141.87,141.84,3.88480767]
[1763493302488,0.69,141.87,141.84,4.55480767]
[1763493303101,23.01096,141.88,141.85,3.88480767]
[1763493303314,23.01096,141.88,141.84,4.55480767]
[1763493304234,22.32096,141.88,141.84,4.55480767]
[1763493304394,0.69,141.87,141.84,4.55480767]
[1763493305829,23.01096,141.88,141.84,4.55480767]
[1763493306197,0.15607394,141.9,141.87,3.88480767]
[1763493306414,0.15607394,141.9,141.88,3.88480767]
[1763493306718,0.15607394,141.9,141.86,9.78882769]
[1763493306931,0.15607394,141.9,141.89,3.88480767]
[1763493307122,0.15607394,141.9,141.89,4.55480767]
[1763493308429,0.84607394,141.9,141.87,3.88480767]
[1763493308608,4.73088161,141.9,141.83,13.98882769]
[1763493308930,18.12096,141.89,141.85,4.55480767]
[1763493309096,18.81096,141.89,141.85,4.55480767]
[1763493309302,0.69,141.88,141.85,3.88480767]
[1763493309842,0.69,141.88,141.84,4.55480767]
[1763493310024,0.69,141.88,141.83,8.75480767]
[1763493310227,0.69,141.88,141.83,4.55480767]
[1763493310412,0.69,141.88,141.83,3.88480767]
[1763493310598,26.20576767,141.87,141.81,4.55480767]
[1763493310999,0.69,141.86,141.81,4.55480767]
[1763493311207,0.69,141.86,141.82,4.55480767]
[1763493311408,4.57480767,141.86,141.82,0.67]
[1763493311608,4.57480767,141.86,141.81,4.55480767]
[1763493311822,0.69,141.85,141.81,4.55480767]
[1763493312932,4.57480767,141.85,141.81,0.67]
[1763493313136,0.69,141.85,141.81,4.55480767]
[1763493316730,3.88480767,141.82,141.76,0.68]
[1763493317033,3.88480767,141.77,141.71,4.66480767]
[1763493317217,3.88480767,141.76,141.71,18.90096]
[1763493317621,3.88480767,141.75,141.71,0.78]
[1763493317854,0.69,141.75,141.71,3.98480767]
[1763493318138,0.69,141.75,141.71,0.78]
[1763493318313,18.12096,141.76,141.72,4.56480767]
[1763493318727,18.12096,141.76,141.73,0.68]
[1763493318917,22.69576767,141.76,141.72,0.68]
[1763493320918,21.30296432,141.76,141.72,0.68]
[1763493321534,21.26296432,141.76,141.72,0.68]
[1763493322646,0.65,141.79,141.73,2.49200432]
[1763493322835,4.2,141.78,141.74,3.19200432]
[1763493323143,4.85,141.78,141.74,3.19200432]
[1763493323347,0.65,141.77,141.73,2.49200432]
[1763493323515,2.49200432,141.76,141.71,2.59200432]
[1763493323716,2.49200432,141.76,141.71,3.29200432]
[1763493323940,3.14200432,141.76,141.72,0.7]
[1763493324543,0.65,141.76,141.72,3.19200432]
[1763493324744,2.49200432,141.77,141.72,3.19200432]
[1763493325052,3.14200432,141.77,141.73,0.7]
[1763493325252,18.12096,141.77,141.72,2.49200432]
[1763493325543,3.14200432,141.76,141.71,2.59200432]
[1763493325721,3.14200432,141.76,141.71,3.29200432]
[1763493325920,0.65,141.75,141.72,0.7]
[1763493326346,2.49200432,141.77,141.72,3.19200432]
[1763493326716,3.14200432,141.76,141.72,0.7]
[1763493326920,3.14200432,141.76,141.71,2.59200432]
[1763493327122,2.49200432,141.76,141.72,0.7]
[1763493327346,3.14200432,141.76,141.72,0.7]
[1763493327748,0.65,141.76,141.72,3.19200432]
[1763493327936,7.34200432,141.78,141.73,2.49200432]
[1763493328143,7.34200432,141.78,141.73,3.19200432]
[1763493328343,2.49200432,141.77,141.74,0.7]
[1763493328521,3.14200432,141.77,141.72,0.7]
[1763493328717,6.69200432,141.78,141.73,2.49200432]
[1763493328924,7.34200432,141.78,141.73,2.49200432]
[1763493329119,4.85,141.78,141.74,0.7]
[1763493330531,4.85,141.78,141.74,3.19200432]
[1763493330939,7.34200432,141.78,141.74,0.7]
[1763493331137,0.65,141.77,141.72,0.7]
[1763493331434,3.14200432,141.77,141.72,2.49200432]
[1763493331642,2.49200432,141.75,141.71,0.1]